[Event "Live Chess"]
[Site "Chess.com"]
[Date "2023.05.20"]
[Round "-"]
[White "f4nomore"]
[Black "HD_IN4k"]
[Result "0-1"]
[WhiteElo "1368"]
[BlackElo "357"]
[TimeControl "300"]
[EndTime "11:01:58 PDT"]
[Termination "HD_IN4k won on time"]

1. d4 {[%clk 0:04:58.4]} 1... c5 {[%clk 0:04:44.3]} 2. dxc5 {[%clk 0:04:49.9]}
2... Nc6 {[%clk 0:04:37.2]} 3. Bg5 {[%clk 0:04:43.9]} 3... h6 {[%clk 0:04:10]}
4. Bh4 {[%clk 0:04:39.9]} 4... Qa5+ {[%clk 0:04:00.4]} 5. Nc3 {[%clk 0:04:31]}
5... g5 {[%clk 0:03:48.9]} 6. Bg3 {[%clk 0:04:28.8]} 6... Bg7 {[%clk 0:03:41.5]}
7. Qd2 {[%clk 0:04:11.5]} 7... Qxc5 {[%clk 0:03:34.6]} 8. Nf3 {[%clk 0:04:02.2]}
8... d6 {[%clk 0:03:25.9]} 9. e3 {[%clk 0:03:57.8]} 9... Bd7 {[%clk 0:03:16.3]}
10. Be2 {[%clk 0:03:45.6]} 10... Rc8 {[%clk 0:03:02.5]} 11. O-O {[%clk
0:03:39.7]} 11... g4 {[%clk 0:02:49.3]} 12. Ne4 {[%clk 0:03:28.7]} 12... Qb6
{[%clk 0:02:36.2]} 13. Nh4 {[%clk 0:02:53.4]} 13... f5 {[%clk 0:02:23.2]} 14.
Nxd6+ {[%clk 0:02:40.1]} 14... exd6 {[%clk 0:02:18.1]} 15. Qxd6 {[%clk
0:02:28.2]} 15... Nce7 {[%clk 0:02:01]} 16. Qxb6 {[%clk 0:02:07.3]} 16... axb6
{[%clk 0:02:00.9]} 17. c3 {[%clk 0:02:05.1]} 17... Nf6 {[%clk 0:01:52]} 18. Rad1
{[%clk 0:01:50.2]} 18... Ne4 {[%clk 0:01:40.7]} 19. Bd6 {[%clk 0:01:21.7]} 19...
Bf8 {[%clk 0:01:28]} 20. Bxe7 {[%clk 0:01:17.7]} 20... Bxe7 {[%clk 0:01:25.9]}
21. Ng6 {[%clk 0:01:14.3]} 21... Rg8 {[%clk 0:01:16]} 22. Ne5 {[%clk 0:01:06.2]}
22... Bc6 {[%clk 0:01:01.1]} 23. Bc4 {[%clk 0:00:53]} 23... Rf8 {[%clk 0:00:53]}
24. Ng6 {[%clk 0:00:36.5]} 24... Rf6 {[%clk 0:00:46]} 25. Nxe7 {[%clk
0:00:27.7]} 25... Kxe7 {[%clk 0:00:43.3]} 26. f3 {[%clk 0:00:17.3]} 26... gxf3
{[%clk 0:00:39.5]} 27. Rxf3 {[%clk 0:00:15.6]} 27... Nxc3 {[%clk 0:00:21.4]} 28.
bxc3 {[%clk 0:00:06.5]} 28... Bxf3 {[%clk 0:00:20.2]} 29. gxf3 {[%clk
0:00:05.1]} 29... Rxc4 {[%clk 0:00:14.2]} 30. Kf2 {[%clk 0:00:03.6]} 30... Rxc3
{[%clk 0:00:08.1]} 0-1

[Event "Live Chess"]
[Site "Chess.com"]
[Date "2023.05.20"]
[Round "-"]
[White "MaximKris"]
[Black "AbilifyXL"]
[Result "1-0"]
[WhiteElo "1875"]
[BlackElo "1952"]
[TimeControl "300"]
[EndTime "11:02:09 PDT"]
[Termination "MaximKris won by checkmate"]

1. e4 {[%clk 0:04:59.3]} 1... d5 {[%clk 0:04:58.5]} 2. exd5 {[%clk 0:04:57.9]}
2... Qxd5 {[%clk 0:04:58]} 3. Nc3 {[%clk 0:04:56.7]} 3... Qa5 {[%clk 0:04:57.5]}
4. Nf3 {[%clk 0:04:55.9]} 4... c6 {[%clk 0:04:56.9]} 5. d4 {[%clk 0:04:55.6]}
5... Nf6 {[%clk 0:04:56.2]} 6. Bd3 {[%clk 0:04:55.1]} 6... Bg4 {[%clk
0:04:55.6]} 7. O-O {[%clk 0:04:53.9]} 7... e6 {[%clk 0:04:54.8]} 8. h3 {[%clk
0:04:53.1]} 8... Bh5 {[%clk 0:04:53.3]} 9. Be3 {[%clk 0:04:51.2]} 9... Nbd7
{[%clk 0:04:45.1]} 10. Qe2 {[%clk 0:04:40.3]} 10... Ke7 {[%clk 0:04:42.1]} 11.
a3 {[%clk 0:04:36.3]} 11... Ke8 {[%clk 0:04:40.6]} 12. b4 {[%clk 0:04:34.7]}
12... Qc7 {[%clk 0:04:39]} 13. b5 {[%clk 0:04:33.3]} 13... c5 {[%clk 0:04:35.4]}
14. dxc5 {[%clk 0:04:22.6]} 14... Bxc5 {[%clk 0:04:33]} 15. Bxc5 {[%clk
0:04:20.4]} 15... Qxc5 {[%clk 0:04:29.7]} 16. Ne4 {[%clk 0:04:14.5]} 16... Nxe4
{[%clk 0:04:27.7]} 17. Qxe4 {[%clk 0:04:14.2]} 17... Bg6 {[%clk 0:04:22.6]} 18.
Qxb7 {[%clk 0:04:12.7]} 18... Rd8 {[%clk 0:04:19.6]} 19. Bxg6 {[%clk 0:04:10.9]}
19... hxg6 {[%clk 0:04:18.8]} 20. Rfe1 {[%clk 0:04:10.4]} 20... Qb6 {[%clk
0:04:04.6]} 21. Qxb6 {[%clk 0:04:07.2]} 21... axb6 {[%clk 0:04:02.8]} 22. Rad1
{[%clk 0:04:06.8]} 22... Ke7 {[%clk 0:04:00.7]} 23. Nd4 {[%clk 0:04:03.7]} 23...
Ra8 {[%clk 0:03:54.3]} 24. Nc6+ {[%clk 0:04:02.3]} 24... Ke8 {[%clk 0:03:52.8]}
25. Rd3 {[%clk 0:03:57.1]} 25... Nc5 {[%clk 0:03:49.4]} 26. Rde3 {[%clk
0:03:34.8]} 26... Rh4 {[%clk 0:03:45]} 27. Rd1 {[%clk 0:03:28.4]} 27... Rha4
{[%clk 0:03:42.9]} 28. Kh2 {[%clk 0:03:23]} 28... Rxa3 {[%clk 0:03:41.5]} 29.
Rxa3 {[%clk 0:03:22.3]} 29... Rxa3 {[%clk 0:03:39.2]} 30. Rd8# {[%clk
0:03:21.6]} 1-0

[Event "Live Chess"]
[Site "Chess.com"]
[Date "2023.05.20"]
[Round "-"]
[White "lHolyDiverl"]
[Black "lateforthesky"]
[Result "0-1"]
[WhiteElo "562"]
[BlackElo "2071"]
[TimeControl "300"]
[EndTime "11:02:10 PDT"]
[Termination "lateforthesky won on time"]

1. e4 {[%clk 0:04:53.6]} 1... c5 {[%clk 0:04:58.5]} 2. Nf3 {[%clk 0:04:51.2]}
2... Nf6 {[%clk 0:04:57.2]} 3. Nc3 {[%clk 0:04:47.7]} 3... d5 {[%clk 0:04:54.4]}
4. d4 {[%clk 0:04:45.5]} 4... dxe4 {[%clk 0:04:52.5]} 5. Ne5 {[%clk 0:04:23.5]}
5... cxd4 {[%clk 0:04:29.2]} 6. Ne2 {[%clk 0:03:59.4]} 6... Nc6 {[%clk
0:04:13.3]} 7. Nxc6 {[%clk 0:03:41.8]} 7... bxc6 {[%clk 0:04:12.1]} 8. Qxd4
{[%clk 0:03:33.7]} 8... Qxd4 {[%clk 0:04:05.9]} 9. Nxd4 {[%clk 0:03:32.1]} 9...
Bb7 {[%clk 0:03:52]} 10. Be2 {[%clk 0:03:01.6]} 10... O-O-O {[%clk 0:03:45.7]}
11. c3 {[%clk 0:02:55.9]} 11... e5 {[%clk 0:03:34.1]} 12. Nf5 {[%clk 0:02:48.9]}
12... Bc5 {[%clk 0:03:24.4]} 13. Be3 {[%clk 0:02:29.9]} 13... Bxe3 {[%clk
0:03:20.8]} 14. fxe3 {[%clk 0:02:22.7]} 14... Nd5 {[%clk 0:03:13.7]} 15. Rd1
{[%clk 0:02:13.4]} 15... g6 {[%clk 0:03:09.6]} 16. Nh6 {[%clk 0:01:56.8]} 16...
Rhf8 {[%clk 0:02:54]} 17. O-O {[%clk 0:01:53.5]} 17... f5 {[%clk 0:02:52]} 18.
Rd2 {[%clk 0:01:31.4]} 18... Nxe3 {[%clk 0:02:46.5]} 19. Rxd8+ {[%clk
0:01:07.5]} 19... Kxd8 {[%clk 0:02:46.4]} 20. Re1 {[%clk 0:00:54.8]} 20... Nd5
{[%clk 0:02:24.9]} 21. g4 {[%clk 0:00:35.5]} 21... f4 {[%clk 0:02:12.2]} 22. g5
{[%clk 0:00:16]} 22... f3 {[%clk 0:02:00.5]} 23. Bc4 {[%clk 0:00:11.4]} 23...
f2+ {[%clk 0:01:59.5]} 24. Kf1 {[%clk 0:00:06.8]} 24... fxe1=Q+ {[%clk 0:01:58]}
25. Kxe1 {[%clk 0:00:06.4]} 25... Rf4 {[%clk 0:01:48.3]} 0-1

[Event "Live Chess"]
[Site "Chess.com"]
[Date "2023.05.20"]
[Round "-"]
[White "misha464"]
[Black "Richardallis"]
[Result "0-1"]
[WhiteElo "759"]
[BlackElo "1651"]
[TimeControl "300"]
[EndTime "11:02:10 PDT"]
[Termination "Richardallis won by resignation"]

1. e4 {[%clk 0:04:56.9]} 1... d5 {[%clk 0:04:57.6]} 2. exd5 {[%clk 0:04:56.1]}
2... Nf6 {[%clk 0:04:56.4]} 3. Nc3 {[%clk 0:04:56]} 3... Nxd5 {[%clk 0:04:55.4]}
4. Nxd5 {[%clk 0:04:54.9]} 4... Qxd5 {[%clk 0:04:54.7]} 5. b3 {[%clk 0:04:53.9]}
5... Qe5+ {[%clk 0:04:53.2]} 6. Be2 {[%clk 0:04:49.1]} 6... Qxa1 {[%clk
0:04:52.5]} 7. Ba3 {[%clk 0:04:47.1]} 7... Qxd1+ {[%clk 0:04:50.2]} 8. Bxd1
{[%clk 0:04:45.9]} 8... e6 {[%clk 0:04:48.9]} 9. Bxf8 {[%clk 0:04:44.8]} 9...
Rxf8 {[%clk 0:04:48.5]} 10. Bf3 {[%clk 0:04:44]} 10... c6 {[%clk 0:04:46.8]} 11.
Ne2 {[%clk 0:04:43.1]} 11... e5 {[%clk 0:04:44.8]} 12. Be4 {[%clk 0:04:42.6]}
12... f5 {[%clk 0:04:42.8]} 13. Bxf5 {[%clk 0:04:41.3]} 13... Bxf5 {[%clk
0:04:41.1]} 14. Nd4 {[%clk 0:04:41.2]} 14... exd4 {[%clk 0:04:39.9]} 15. O-O
{[%clk 0:04:40.7]} 15... Bxc2 {[%clk 0:04:38.6]} 16. Re1+ {[%clk 0:04:39.3]}
16... Kd7 {[%clk 0:04:37.6]} 17. Re7+ {[%clk 0:04:38.5]} 17... Kxe7 {[%clk
0:04:36.4]} 0-1

[Event "Live Chess"]
[Site "Chess.com"]
[Date "2023.05.20"]
[Round "-"]
[White "Chris_pea"]
[Black "LodeshChess"]
[Result "0-1"]
[WhiteElo "610"]
[BlackElo "952"]
[TimeControl "300"]
[EndTime "11:02:11 PDT"]
[Termination "LodeshChess won by checkmate"]

1. e4 {[%clk 0:04:57.5]} 1... c6 {[%clk 0:04:56.8]} 2. Nc3 {[%clk 0:04:56.1]}
2... d5 {[%clk 0:04:56.1]} 3. d4 {[%clk 0:04:48]} 3... dxe4 {[%clk 0:04:54.1]}
4. Nxe4 {[%clk 0:04:43.8]} 4... Bf5 {[%clk 0:04:53.2]} 5. Ng3 {[%clk 0:04:32.4]}
5... Bg6 {[%clk 0:04:51.7]} 6. Bd3 {[%clk 0:04:22.7]} 6... Bxd3 {[%clk
0:04:49.8]} 7. Qxd3 {[%clk 0:04:21.3]} 7... Nf6 {[%clk 0:04:49.4]} 8. Bd2 {[%clk
0:04:16.5]} 8... e6 {[%clk 0:04:45.2]} 9. Nf3 {[%clk 0:04:15.2]} 9... Qb6 {[%clk
0:04:39]} 10. Bc3 {[%clk 0:03:53.5]} 10... Bb4 {[%clk 0:04:35.8]} 11. O-O {[%clk
0:03:45.2]} 11... O-O {[%clk 0:04:29.5]} 12. Rab1 {[%clk 0:03:38]} 12... Nd5
{[%clk 0:04:22.3]} 13. a3 {[%clk 0:03:25.1]} 13... Nxc3 {[%clk 0:04:12.1]} 14.
bxc3 {[%clk 0:03:21]} 14... Qc7 {[%clk 0:04:00]} 15. cxb4 {[%clk 0:03:15.8]}
15... Nd7 {[%clk 0:03:58.9]} 16. Ne4 {[%clk 0:02:58.4]} 16... Nb6 {[%clk
0:03:48.5]} 17. Nc5 {[%clk 0:02:42.8]} 17... Nd5 {[%clk 0:03:42.1]} 18. Ne5
{[%clk 0:02:20.9]} 18... Rfd8 {[%clk 0:03:32.1]} 19. c4 {[%clk 0:01:55.7]} 19...
Nf6 {[%clk 0:03:26.3]} 20. Nf3 {[%clk 0:01:35.2]} 20... b6 {[%clk 0:03:17.1]}
21. Na6 {[%clk 0:01:29.8]} 21... Qb7 {[%clk 0:03:11.7]} 22. b5 {[%clk
0:01:25.4]} 22... cxb5 {[%clk 0:03:10.7]} 23. cxb5 {[%clk 0:01:21]} 23... Rac8
{[%clk 0:02:58.9]} 24. Rfc1 {[%clk 0:01:00.3]} 24... Nd5 {[%clk 0:02:45.3]} 25.
Ng5 {[%clk 0:00:38.2]} 25... g6 {[%clk 0:02:43.9]} 26. Qh3 {[%clk 0:00:30.6]}
26... h5 {[%clk 0:02:36.7]} 27. Qf3 {[%clk 0:00:26.4]} 27... Rd7 {[%clk
0:02:20.7]} 28. Nb4 {[%clk 0:00:11.6]} 28... Nxb4 {[%clk 0:02:16.2]} 29. Rxb4
{[%clk 0:00:07.6]} 29... Rxc1+ {[%clk 0:02:14]} 30. Qd1 {[%clk 0:00:03.9]} 30...
Rxd1# {[%clk 0:02:13.3]} 0-1

[Event "Live Chess"]
[Site "Chess.com"]
[Date "2023.05.20"]
[Round "-"]
[White "WelshTiger"]
[Black "Ninifu"]
[Result "1-0"]
[WhiteElo "2430"]
[BlackElo "1986"]
[TimeControl "300"]
[EndTime "11:02:11 PDT"]
[Termination "WelshTiger won by resignation"]

1. e4 {[%clk 0:04:58.1]} 1... d5 {[%clk 0:04:58.4]} 2. exd5 {[%clk 0:04:57.2]}
2... Nf6 {[%clk 0:04:55.6]} 3. c4 {[%clk 0:04:55.4]} 3... e6 {[%clk 0:04:54.2]}
4. d4 {[%clk 0:04:48.6]} 4... exd5 {[%clk 0:04:52.7]} 5. Nc3 {[%clk 0:04:48.2]}
5... Be7 {[%clk 0:04:51.2]} 6. Nf3 {[%clk 0:04:46.9]} 6... Nc6 {[%clk 0:04:50]}
7. cxd5 {[%clk 0:04:36.8]} 7... Nxd5 {[%clk 0:04:48.3]} 8. Bc4 {[%clk
0:04:36.5]} 8... Nb6 {[%clk 0:04:40.4]} 9. Be2 {[%clk 0:04:29.8]} 9... O-O
{[%clk 0:04:39.3]} 10. O-O {[%clk 0:04:21.6]} 10... Bf6 {[%clk 0:04:38.5]} 11.
Be3 {[%clk 0:04:17.8]} 11... Nd5 {[%clk 0:04:20]} 12. Nxd5 {[%clk 0:04:12.2]}
12... Qxd5 {[%clk 0:04:18.1]} 13. Rc1 {[%clk 0:03:59.3]} 13... Qxa2 {[%clk
0:04:03.1]} 14. d5 {[%clk 0:03:58.1]} 14... Ne5 {[%clk 0:03:51.4]} 15. Rxc7
{[%clk 0:03:53.2]} 15... Qxb2 {[%clk 0:03:43.5]} 16. Nd4 {[%clk 0:03:39.5]}
16... Qb4 {[%clk 0:02:49.9]} 17. Qc2 {[%clk 0:03:22.7]} 17... Bg4 {[%clk
0:02:40.3]} 18. f3 {[%clk 0:03:21.2]} 18... Bh5 {[%clk 0:02:17.4]} 19. Rb1
{[%clk 0:03:10.2]} 19... Qd6 {[%clk 0:02:13.5]} 20. Qc5 {[%clk 0:03:09.1]} 20...
Qxc5 {[%clk 0:01:50.9]} 21. Rxc5 {[%clk 0:03:09]} 21... b6 {[%clk 0:01:50.1]}
22. Rc7 {[%clk 0:03:04.1]} 22... Bg6 {[%clk 0:01:48.7]} 23. Rb3 {[%clk
0:02:56.2]} 23... Rfd8 {[%clk 0:01:41.6]} 24. f4 {[%clk 0:02:55.5]} 24... Rxd5
{[%clk 0:01:23.3]} 25. fxe5 {[%clk 0:02:54.5]} 25... Bxe5 {[%clk 0:01:22.3]} 26.
Bf3 {[%clk 0:02:44]} 26... Rxd4 {[%clk 0:01:10.8]} 27. Bxd4 {[%clk 0:02:34.3]}
27... Bxc7 {[%clk 0:00:58.3]} 28. Bxa8 {[%clk 0:02:32.5]} 1-0

[Event "Live Chess"]
[Site "Chess.com"]
[Date "2023.05.20"]
[Round "-"]
[White "MarkLim1"]
[Black "profpirate4"]
[Result "1-0"]
[WhiteElo "1611"]
[BlackElo "1016"]
[TimeControl "300"]
[EndTime "11:02:19 PDT"]
[Termination "MarkLim1 won by resignation"]

1. d4 {[%clk 0:04:58.9]} 1... f5 {[%clk 0:04:59.1]} 2. Nf3 {[%clk 0:04:58.1]}
2... e6 {[%clk 0:04:59]} 3. e3 {[%clk 0:04:57.3]} 3... Nf6 {[%clk 0:04:58.2]} 4.
Be2 {[%clk 0:04:56.6]} 4... b6 {[%clk 0:04:57.3]} 5. O-O {[%clk 0:04:55.7]} 5...
Bb7 {[%clk 0:04:56.8]} 6. c4 {[%clk 0:04:54.4]} 6... Bd6 {[%clk 0:04:52.1]} 7.
Nc3 {[%clk 0:04:53.9]} 7... O-O {[%clk 0:04:50.4]} 8. b3 {[%clk 0:04:52.1]} 8...
Ne4 {[%clk 0:04:48.5]} 9. Nxe4 {[%clk 0:04:50.8]} 9... fxe4 {[%clk 0:04:47.5]}
10. Nd2 {[%clk 0:04:49.3]} 10... Qh4 {[%clk 0:04:40.3]} 11. g3 {[%clk
0:04:47.8]} 11... Qd8 {[%clk 0:04:35.6]} 12. Qc2 {[%clk 0:04:46.7]} 12... Qe8
{[%clk 0:04:26]} 13. Nxe4 {[%clk 0:04:45.6]} 13... Be7 {[%clk 0:04:15.1]} 14.
Bb2 {[%clk 0:04:42.9]} 14... d5 {[%clk 0:04:10.1]} 15. cxd5 {[%clk 0:04:41.5]}
15... Bxd5 {[%clk 0:04:03.7]} 16. Nd2 {[%clk 0:04:32.4]} 16... Nd7 {[%clk
0:03:53.5]} 17. Qxc7 {[%clk 0:04:30.1]} 17... Rc8 {[%clk 0:03:38.8]} 18. Qxa7
{[%clk 0:04:28.3]} 18... Rc2 {[%clk 0:03:37.7]} 19. Bf3 {[%clk 0:04:15]} 19...
Rxb2 {[%clk 0:03:29.2]} 20. Bxd5 {[%clk 0:04:13.7]} 20... Rxd2 {[%clk
0:03:21.5]} 21. Bxe6+ {[%clk 0:04:12.4]} 21... Kh8 {[%clk 0:03:16]} 22. Bxd7
{[%clk 0:04:09.4]} 22... Qg6 {[%clk 0:03:09]} 23. Bh3 {[%clk 0:04:03.8]} 23...
Bh4 {[%clk 0:03:03]} 24. Bg2 {[%clk 0:04:00.5]} 24... Qc2 {[%clk 0:02:49.5]} 25.
Rac1 {[%clk 0:03:50.7]} 25... Qb2 {[%clk 0:02:44.6]} 26. Qxb6 {[%clk 0:03:41.1]}
26... Rdxf2 {[%clk 0:02:38.3]} 27. Qc6 {[%clk 0:03:27.8]} 27... Bg5 {[%clk
0:01:56.5]} 28. h4 {[%clk 0:03:06.9]} 28... Bxe3 {[%clk 0:01:54.6]} 29. Kh1
{[%clk 0:03:01.9]} 29... Bxc1 {[%clk 0:01:49.4]} 30. Rxc1 {[%clk 0:02:56.4]}
30... Qxc1+ {[%clk 0:01:47.9]} 31. Qxc1 {[%clk 0:02:54.5]} 31... Rxa2 {[%clk
0:01:44]} 32. b4 {[%clk 0:02:46.8]} 32... Re8 {[%clk 0:01:36.1]} 33. b5 {[%clk
0:02:42.9]} 33... Rae2 {[%clk 0:01:34.2]} 34. Qc6 {[%clk 0:02:38]} 34... Re1+
{[%clk 0:01:32.8]} 35. Kh2 {[%clk 0:02:37]} 35... R1e6 {[%clk 0:01:28.5]} 36.
Qc4 {[%clk 0:02:32]} 36... R6e7 {[%clk 0:01:25.2]} 37. b6 {[%clk 0:02:30.5]}
37... Rb8 {[%clk 0:01:15.3]} 38. b7 {[%clk 0:02:28.5]} 38... Rf7 {[%clk
0:01:06.7]} 39. Qxf7 {[%clk 0:02:26.2]} 1-0

[Event "Live Chess"]
[Site "Chess.com"]
[Date "2023.05.20"]
[Round "-"]
[White "ViktorTheCoolBoy"]
[Black "WilliamofOrange16th"]
[Result "1-0"]
[WhiteElo "2543"]
[BlackElo "1879"]
[TimeControl "300"]
[EndTime "11:02:22 PDT"]
[Termination "ViktorTheCoolBoy won by resignation"]

1. Nf3 {[%clk 0:04:58.3]} 1... d6 {[%clk 0:04:58.7]} 2. b3 {[%clk 0:04:56.7]}
2... Nf6 {[%clk 0:04:58.6]} 3. d4 {[%clk 0:04:55]} 3... Nbd7 {[%clk 0:04:56.5]}
4. Bb2 {[%clk 0:04:54.2]} 4... e6 {[%clk 0:04:55.4]} 5. g3 {[%clk 0:04:53.7]}
5... Be7 {[%clk 0:04:54.9]} 6. Bg2 {[%clk 0:04:53]} 6... O-O {[%clk 0:04:54.8]}
7. O-O {[%clk 0:04:52.2]} 7... c6 {[%clk 0:04:54.5]} 8. Nbd2 {[%clk 0:04:51.6]}
8... d5 {[%clk 0:04:54]} 9. Re1 {[%clk 0:04:50.3]} 9... Qc7 {[%clk 0:04:53]} 10.
Rc1 {[%clk 0:04:46.9]} 10... b5 {[%clk 0:04:50.2]} 11. c4 {[%clk 0:04:45.5]}
11... bxc4 {[%clk 0:04:49.2]} 12. bxc4 {[%clk 0:04:44.5]} 12... Qb8 {[%clk
0:04:47.4]} 13. Qc2 {[%clk 0:04:43.6]} 13... Re8 {[%clk 0:04:42.1]} 14. Rb1
{[%clk 0:04:42.6]} 14... Qc7 {[%clk 0:04:40.5]} 15. e4 {[%clk 0:04:38.6]} 15...
dxe4 {[%clk 0:04:39.3]} 16. Nxe4 {[%clk 0:04:37.5]} 16... Nxe4 {[%clk
0:04:38.8]} 17. Rxe4 {[%clk 0:04:36.8]} 17... Nf6 {[%clk 0:04:37.8]} 18. Re2
{[%clk 0:04:35.7]} 18... Bb7 {[%clk 0:04:35.9]} 19. Ne5 {[%clk 0:04:30.5]} 19...
Rad8 {[%clk 0:04:32.4]} 20. Ba1 {[%clk 0:04:27.7]} 20... Ba8 {[%clk 0:04:30.2]}
21. Qa4 {[%clk 0:04:22.5]} 21... Rc8 {[%clk 0:04:28.4]} 22. Bc3 {[%clk
0:04:02.5]} 22... Nd7 {[%clk 0:04:27.3]} 23. Ba5 {[%clk 0:03:37.8]} 23... Nb6
{[%clk 0:04:25.8]} 24. Qc2 {[%clk 0:03:29.4]} 24... f6 {[%clk 0:04:16]} 25. Nd3
{[%clk 0:03:25.1]} 25... Qd7 {[%clk 0:04:11.4]} 26. Nc5 {[%clk 0:03:16]} 26...
Bxc5 {[%clk 0:04:09.6]} 27. dxc5 {[%clk 0:03:15.2]} 27... Nd5 {[%clk 0:04:00.6]}
28. cxd5 {[%clk 0:03:11.8]} 28... exd5 {[%clk 0:04:00.5]} 29. Rbe1 {[%clk
0:03:09.2]} 29... Bb7 {[%clk 0:03:55.4]} 30. Bc3 {[%clk 0:03:03.7]} 30... Ba6
{[%clk 0:03:52.4]} 31. Rxe8+ {[%clk 0:03:02]} 31... Rxe8 {[%clk 0:03:52.3]} 32.
Rxe8+ {[%clk 0:02:53.9]} 32... Qxe8 {[%clk 0:03:52.2]} 33. Bf1 {[%clk
0:02:51.6]} 33... Bc8 {[%clk 0:03:50.1]} 34. Qe2 {[%clk 0:02:48.7]} 34... Qd8
{[%clk 0:03:40.4]} 35. h4 {[%clk 0:02:44.6]} 35... Kf7 {[%clk 0:03:39.5]} 36.
Qh5+ {[%clk 0:02:39.9]} 36... Kf8 {[%clk 0:03:36.9]} 1-0

[Event "Live Chess"]
[Site "Chess.com"]
[Date "2023.05.20"]
[Round "-"]
[White "toog"]
[Black "JoshMcK"]
[Result "1-0"]
[WhiteElo "2642"]
[BlackElo "1535"]
[TimeControl "300"]
[EndTime "11:02:40 PDT"]
[Termination "toog won by resignation"]

1. b4 {[%clk 0:04:56.7]} 1... Nf6 {[%clk 0:04:53.1]} 2. Bb2 {[%clk 0:04:53.5]}
2... Nc6 {[%clk 0:04:47.3]} 3. b5 {[%clk 0:04:51]} 3... Na5 {[%clk 0:04:44.8]}
4. e3 {[%clk 0:04:47.6]} 4... c6 {[%clk 0:04:41.3]} 5. a4 {[%clk 0:04:45.3]}
5... cxb5 {[%clk 0:04:38.7]} 6. axb5 {[%clk 0:04:45.2]} 6... e6 {[%clk
0:04:36.1]} 7. Nf3 {[%clk 0:04:44]} 7... Be7 {[%clk 0:04:34.2]} 8. Be2 {[%clk
0:04:43]} 8... O-O {[%clk 0:04:31.7]} 9. O-O {[%clk 0:04:41.5]} 9... a6 {[%clk
0:04:30.9]} 10. bxa6 {[%clk 0:04:38.6]} 10... bxa6 {[%clk 0:04:30.1]} 11. Na3
{[%clk 0:04:33.8]} 11... Nc6 {[%clk 0:04:28.6]} 12. Nc4 {[%clk 0:04:30.2]} 12...
d5 {[%clk 0:04:23.4]} 13. Nce5 {[%clk 0:04:29]} 13... Nxe5 {[%clk 0:04:21.7]}
14. Nxe5 {[%clk 0:04:28.9]} 14... Nd7 {[%clk 0:04:02.3]} 15. Nc6 {[%clk
0:04:26.7]} 15... Qe8 {[%clk 0:03:59.6]} 16. Nxe7+ {[%clk 0:04:24.6]} 16... Qxe7
{[%clk 0:03:58.7]} 17. Ba3 {[%clk 0:04:24.5]} 17... Qe8 {[%clk 0:03:57.6]} 18.
Bxf8 {[%clk 0:04:22.4]} 18... Nxf8 {[%clk 0:03:56.9]} 19. d4 {[%clk 0:04:18.7]}
19... Nd7 {[%clk 0:03:55.3]} 20. c4 {[%clk 0:04:16.8]} 20... dxc4 {[%clk
0:03:53.6]} 21. Bxc4 {[%clk 0:04:16.7]} 21... Nb6 {[%clk 0:03:51]} 22. Bd3
{[%clk 0:04:15.5]} 22... Nd5 {[%clk 0:03:50.1]} 23. Qe2 {[%clk 0:04:13.4]} 23...
Qc6 {[%clk 0:03:42.8]} 24. Rfc1 {[%clk 0:04:11.2]} 24... Qb7 {[%clk 0:03:35.3]}
25. Rab1 {[%clk 0:04:01.8]} 25... Qd7 {[%clk 0:03:32.9]} 26. Be4 {[%clk
0:03:57.9]} 26... f5 {[%clk 0:03:27]} 27. Bxd5 {[%clk 0:03:56.9]} 27... exd5
{[%clk 0:03:25.8]} 28. Qh5 {[%clk 0:03:52.8]} 28... g6 {[%clk 0:03:21.2]} 29.
Qg5 {[%clk 0:03:49.6]} 29... Bb7 {[%clk 0:03:07.5]} 30. Qf6 {[%clk 0:03:41.7]}
30... Rf8 {[%clk 0:03:01.3]} 31. Qe5 {[%clk 0:03:39.6]} 31... Bc6 {[%clk
0:02:56.1]} 32. Rb6 {[%clk 0:03:33.4]} 32... Bb5 {[%clk 0:02:54]} 33. Rc7 {[%clk
0:03:30]} 1-0

[Event "Live Chess"]
[Site "Chess.com"]
[Date "2023.05.20"]
[Round "-"]
[White "Vladyslav2008"]
[Black "JoeyCage"]
[Result "0-1"]
[WhiteElo "2173"]
[BlackElo "2305"]
[TimeControl "300"]
[EndTime "11:02:40 PDT"]
[Termination "JoeyCage won by resignation"]

1. d4 {[%clk 0:04:56.1]} 1... g6 {[%clk 0:04:58.6]} 2. c4 {[%clk 0:04:52.1]}
2... Bg7 {[%clk 0:04:58.1]} 3. Nc3 {[%clk 0:04:51.3]} 3... d6 {[%clk 0:04:57.7]}
4. Nf3 {[%clk 0:04:49.7]} 4... Nc6 {[%clk 0:04:56.2]} 5. e4 {[%clk 0:04:48]}
5... Bg4 {[%clk 0:04:54.1]} 6. d5 {[%clk 0:04:45.4]} 6... Nd4 {[%clk 0:04:53]}
7. Be3 {[%clk 0:04:43.3]} 7... Bxf3 {[%clk 0:04:51]} 8. gxf3 {[%clk 0:04:42.1]}
8... c5 {[%clk 0:04:50]} 9. dxc6 {[%clk 0:04:40.9]} 9... Nxc6 {[%clk 0:04:48.9]}
10. Qd2 {[%clk 0:04:37.8]} 10... Nf6 {[%clk 0:04:48.4]} 11. Be2 {[%clk
0:04:35.6]} 11... Qa5 {[%clk 0:04:42.6]} 12. f4 {[%clk 0:04:32.1]} 12... Rd8
{[%clk 0:04:35.3]} 13. Bf3 {[%clk 0:04:20.1]} 13... h5 {[%clk 0:04:25.7]} 14.
Rg1 {[%clk 0:04:13.1]} 14... Ng4 {[%clk 0:04:23]} 15. Bxg4 {[%clk 0:04:05.6]}
15... hxg4 {[%clk 0:04:21.6]} 16. Rxg4 {[%clk 0:04:05.3]} 16... Rxh2 {[%clk
0:04:19.8]} 17. O-O-O {[%clk 0:03:51.6]} 17... Nb4 {[%clk 0:04:07.1]} 18. e5
{[%clk 0:03:41.6]} 18... Nxa2+ {[%clk 0:04:01.9]} 19. Nxa2 {[%clk 0:03:40.3]}
19... Qxa2 {[%clk 0:04:00.7]} 20. e6 {[%clk 0:03:24.4]} 20... Qxc4+ {[%clk
0:03:57]} 21. Kb1 {[%clk 0:03:20.7]} 21... Qxe6 {[%clk 0:03:55.6]} 0-1